bitfinex-derivatives/quotes_BTCF0:USTF0_20250329
["timestamp","ask_amount","ask_price","bid_price","bid_amount"]
[1743224659820,0.21263179,84041.0,84040.0,0.00103189]
[1743224660015,0.21263179,84041.0,84040.0,0.00203189]
[1743224660222,0.21263179,84041.0,84040.0,0.00211189]
[1743224660519,0.21263179,84041.0,84040.0,0.00303189]
[1743224660720,0.21263179,84041.0,84040.0,0.03303189]
[1743224660916,0.20071383,84041.0,84040.0,0.03303189]
[1743224662122,0.20271383,84041.0,84040.0,0.03111189]
[1743224662324,0.20271383,84041.0,84040.0,0.03203189]
[1743224662621,0.21463333,84041.0,84040.0,0.03111189]
[1743224662925,0.21463333,84041.0,84040.0,0.03011189]
[1743224663108,0.20677613,84041.0,84040.0,0.03011189]
[1743224663311,0.21659242,84041.0,84040.0,0.03011189]
[1743224663514,0.20467292,84041.0,84040.0,0.03107189]
[1743224663721,0.32019292,84041.0,84040.0,0.03107189]
[1743224664109,0.32019292,84041.0,84040.0,0.15010799]
[1743224664315,0.32019292,84041.0,84040.0,0.14914799]
[1743224664712,0.68099292,84041.0,84040.0,0.03011189]
[1743224665811,0.32019292,84041.0,84040.0,0.03011189]
[1743224666012,0.68099292,84041.0,84040.0,0.03103189]
[1743224666215,0.68099292,84041.0,84040.0,0.03011189]
[1743224666814,0.32019292,84041.0,84040.0,0.03011189]
[1743224667013,0.32019292,84041.0,84040.0,0.03103189]
[1743224667316,0.68099292,84041.0,84040.0,0.03103189]
[1743224667622,0.32019292,84041.0,84040.0,0.03011189]
[1743224667813,0.68099292,84041.0,84040.0,0.03107189]
[1743224668013,0.68099292,84041.0,84040.0,0.03011189]
[1743224668921,0.68090929,84041.0,84040.0,0.03011189]
[1743224674236,0.32010929,84041.0,84040.0,0.03011189]
[1743224674421,0.68090929,84041.0,84040.0,0.03103189]
[1743224674621,0.68090929,84041.0,84040.0,0.03011189]
[1743224675219,0.56538929,84041.0,84040.0,0.03011189]
[1743224675532,0.61698929,84041.0,84040.0,0.14914799]
[1743224675721,0.61698929,84041.0,84040.0,0.18054799]
[1743224676032,0.61698929,84041.0,84040.0,0.18150799]
[1743224676225,0.61698929,84041.0,84040.0,0.18054799]
[1743224676624,0.60984736,84041.0,84040.0,0.18054799]
[1743224676929,0.61714697,84041.0,84040.0,0.18054799]
[1743224677427,0.61714697,84041.0,84040.0,0.18146799]
[1743224678631,0.61697239,84041.0,84040.0,0.18146799]
[1743224679428,0.61697239,84041.0,84040.0,0.15006799]
[1743224679631,0.67857239,84041.0,84040.0,0.15006799]
[1743224680531,0.67856864,84041.0,84040.0,0.15006799]
[1743224681432,0.67856864,84041.0,84040.0,0.03103189]
[1743224681832,0.67856864,84041.0,84040.0,0.03011189]
[1743224682131,0.67856864,84041.0,84040.0,0.00011189]
[1743224682326,0.66901431,84041.0,84040.0,0.00011189]
[1743224682531,0.6786651,84041.0,84040.0,0.00011189]
[1743224683629,0.6786651,84041.0,84040.0,0.00103189]
[1743224683931,0.6786651,84041.0,84040.0,0.00011189]
[1743224685132,0.67876421,84041.0,84040.0,0.00011189]
[1743224685535,0.69018286,84041.0,84040.0,0.00011189]
[1743224686037,0.1190404,84037.0,84036.0,0.064]
[1743224686234,0.50192872,84037.0,84036.0,0.03282]
[1743224686535,0.50192872,84037.0,84036.0,0.0319]
[1743224686735,0.50922833,84037.0,84036.0,0.0319]
[1743224686928,0.57392833,84037.0,84036.0,0.0319]
[1743224687131,0.1190418,84036.0,84035.0,0.00017838]
[1743224687429,0.14081013,84036.0,84035.0,0.00017838]
[1743224687636,0.20391013,84036.0,84035.0,0.00017838]
[1743224687934,0.21120974,84036.0,84035.0,0.00017838]
[1743224688132,0.2112106,84036.0,84035.0,0.00017838]
[1743224689637,0.2122106,84036.0,84035.0,0.00017838]
[1743224690023,0.20490212,84036.0,84035.0,0.00017838]
[1743224690227,0.20590212,84036.0,84035.0,0.00017838]
[1743224690428,0.21310033,84036.0,84035.0,0.00017838]
[1743224690931,0.27097096,84036.0,84035.0,0.00017838]
[1743224692140,0.99273296,84036.0,84035.0,0.00017838]
[1743224692724,1.00855087,84036.0,84035.0,0.00017838]
[1743224693735,0.99273296,84036.0,84035.0,0.00017838]
[1743224694539,0.99173296,84036.0,84035.0,0.00017838]
[1743224694843,0.27213296,84036.0,84035.0,0.00017838]
[1743224695042,0.63293296,84036.0,84035.0,0.00017838]
[1743224695938,0.63475914,84036.0,84035.0,0.00017838]
[1743224696134,0.62329216,84036.0,84035.0,0.00017838]
[1743224696439,0.63473929,84036.0,84035.0,0.00017838]
[1743224697030,0.62329216,84036.0,84035.0,0.00017838]
[1743224697727,0.73885216,84036.0,84035.0,0.00017838]
[1743224698342,0.85912728,84036.0,84035.0,0.00017838]
[1743224701644,0.68098153,84036.0,84035.0,0.00017838]
[1743224704943,0.32018153,84036.0,84035.0,0.00017838]
[1743224705144,0.68098153,84036.0,84035.0,0.00017838]
[1743224705729,0.32018153,84036.0,84035.0,0.00017838]
[1743224705934,0.68982863,84036.0,84035.0,0.00017838]
[1743224708543,0.74770308,84036.0,84035.0,0.00017838]
[1743224710248,0.7591347,84036.0,84035.0,0.00017838]
[1743224711538,0.74738308,84036.0,84035.0,0.00017838]
[1743224711947,0.75880315,84036.0,84035.0,0.00017838]
[1743224712547,0.75867911,84036.0,84035.0,0.00017838]
[1743224712856,0.61173911,84036.0,84035.0,0.11922158]
[1743224713151,0.61173911,84036.0,84035.0,0.00017838]
[1743224713152,0.69557911,84036.0,84035.0,0.00017838]
[1743224714535,0.56891753,84036.0,84035.0,0.00017838]
[1743224714742,0.56891753,84036.0,84035.0,0.11922158]
[1743224714937,0.68415753,84036.0,84035.0,0.12018158]
[1743224715138,0.68415753,84036.0,84035.0,0.11922158]
[1743224716541,0.67531043,84036.0,84035.0,0.11922158]
[1743224716740,0.67531043,84036.0,84035.0,0.00017838]
[1743224718641,0.67531043,84036.0,84035.0,0.11922158]
[1743224718841,0.67531043,84036.0,84035.0,0.12014158]
[1743224720338,0.44102863,84036.0,84035.0,0.4020968]
[1743224720648,0.08022863,84036.0,84035.0,0.4020968]
[1743224721342,0.02235418,84036.0,84035.0,0.4020968]
[1743224721543,0.02275417,84036.0,84035.0,0.4020968]
[1743224721739,0.02175417,84036.0,84035.0,0.4020968]
[1743224722146,0.13359776,84036.0,84035.0,0.4020968]
[1743224722342,0.13455777,84036.0,84035.0,0.4020968]
[1743224723556,0.13455777,84036.0,84035.0,0.39014158]
[1743224724761,0.13438293,84036.0,84035.0,0.39014158]
[1743224725144,0.13438293,84036.0,84035.0,0.60415403]
[1743224725956,0.13436714,84036.0,84035.0,0.60415403]
[1743224728958,0.13436714,84036.0,84035.0,0.33415403]
[1743224729162,0.13436714,84036.0,84035.0,0.00109838]
[1743224729461,0.24960714,84036.0,84035.0,0.00109838]
[1743224729761,0.31317127,84036.0,84035.0,0.00109838]
[1743224731664,0.31337542,84036.0,84035.0,0.00109838]
[1743224733756,0.3712525,84036.0,84035.0,0.00109838]
[1743224733954,0.54959021,84036.0,84035.0,0.00017838]
[1743224735261,0.55666891,84036.0,84035.0,0.00017838]
[1743224735656,1.27826891,84036.0,84035.0,0.00017838]
[1743224737369,1.27841373,84036.0,84035.0,0.00017838]
[1743224737863,1.22053665,84036.0,84035.0,0.00017838]
[1743224739257,1.22052763,84036.0,84035.0,0.00017838]
[1743224740168,1.23199237,84036.0,84035.0,0.00017838]
[1743224740968,0.51039237,84036.0,84035.0,0.00017838]
[1743224741170,1.23199237,84036.0,84035.0,0.00017838]
[1743224742654,1.22052763,84036.0,84035.0,0.00017838]
[1743224742858,1.23199104,84036.0,84035.0,0.00017838]
[1743224743255,1.23197456,84036.0,84035.0,0.00017838]
[1743224744168,0.1190489,84031.0,84030.0,0.0476]
[1743224744472,0.12940184,84031.0,84030.0,0.0476]
[1743224744664,0.13648054,84031.0,84030.0,0.0476]
[1743224745164,0.20058054,84031.0,84030.0,0.0476]
[1743224745470,0.20258054,84031.0,84030.0,0.0476]
[1743224745665,0.20458054,84031.0,84030.0,0.1666503]
[1743224745870,0.31978054,84031.0,84030.0,0.1666503]
[1743224746373,0.31978054,84031.0,84030.0,0.04852]
[1743224746567,0.31978054,84031.0,84030.0,0.0476]
[1743224747067,0.31984189,84031.0,84030.0,0.0476]
[1743224747270,0.31984189,84031.0,84030.0,0.0803]
[1743224747472,0.31984189,84031.0,84030.0,0.1106]
[1743224748065,0.3198467,84031.0,84030.0,0.1106]
[1743224748366,0.2046467,84031.0,84030.0,0.1106]
[1743224748675,0.0214978,84031.0,84030.0,0.3896503]
[1743224748877,0.02147223,84031.0,84030.0,0.3905703]
[1743224749280,0.0110787,84031.0,84030.0,0.3905703]
[1743224749468,0.0110787,84031.0,84030.0,0.40265667]
[1743224749668,0.004,84031.0,84030.0,0.40265667]
[1743224750166,0.005,84031.0,84030.0,0.40265667]
[1743224750567,0.004,84031.0,84030.0,0.40265667]
[1743224751075,0.00464,84031.0,84030.0,0.40265667]
[1743224751277,0.004,84031.0,84030.0,0.40265667]
[1743224753475,0.10686231,84036.0,84035.0,0.1190432]
[1743224753678,0.10778231,84036.0,84035.0,0.7507632]
[1743224753979,0.14248308,84039.0,84038.0,0.119039]
[1743224754279,0.14368309,84039.0,84038.0,0.360239]
[1743224754675,0.00120001,84039.0,84038.0,0.360239]
[1743224754881,0.0595148,84045.0,84044.0,0.119029]
[1743224755083,0.06944323,84045.0,84044.0,0.290229]
[1743224755782,0.06011481,84045.0,84044.0,0.290229]
[1743224755983,0.06948163,84045.0,84044.0,0.290229]
[1743224756167,0.00996683,84045.0,84044.0,0.290229]
[1743224756369,0.12262901,84045.0,84044.0,0.290229]
[1743224756577,0.12362901,84045.0,84044.0,0.290229]
[1743224758581,0.12062901,84045.0,84044.0,0.290229]
[1743224759677,0.11962901,84045.0,84044.0,0.290229]
[1743224759878,0.12062901,84045.0,84044.0,0.337819]
[1743224760873,0.12062901,84045.0,84044.0,0.167819]
[1743224761470,0.18422901,84045.0,84044.0,0.167819]
[1743224765488,0.19381716,84045.0,84044.0,0.167819]
[1743224770993,0.19381716,84045.0,84044.0,0.198019]
[1743224771386,0.19394553,84045.0,84044.0,0.167819]
[1743224772998,0.19390685,84045.0,84044.0,0.167819]
[1743224773384,0.19390769,84045.0,84044.0,0.167819]
[1743224773590,0.20126167,84045.0,84044.0,0.167819]
[1743224775183,0.19158299,84045.0,84044.0,0.167819]
[1743224775389,0.20126074,84045.0,84044.0,0.167819]
[1743224775786,0.20126074,84045.0,84044.0,0.04879]
[1743224775992,0.20126074,84045.0,84044.0,0.04759]
[1743224776597,0.31646074,84045.0,84044.0,0.04879]
[1743224776799,0.31646074,84045.0,84044.0,0.04759]
[1743224776998,0.31646074,84045.0,84044.0,0.04879]
[1743224777303,0.31654742,84045.0,84044.0,0.04879]
[1743224777606,0.32843902,84045.0,84044.0,0.04759]
[1743224777789,0.32843902,84045.0,84044.0,0.04887]
[1743224778308,0.32843902,84045.0,84044.0,0.04759]
[1743224780301,0.4709221,84045.0,84044.0,0.04759]
[1743224783102,0.47102369,84045.0,84044.0,0.04759]
[1743224783506,0.32854061,84045.0,84044.0,0.04759]
[1743224783906,0.08242001,84045.0,84044.0,0.4366205]
[1743224784098,0.05152001,84045.0,84044.0,0.7986205]
[1743224784303,0.05152001,84045.0,84044.0,0.8590205]
[1743224784502,0.17054901,84045.0,84044.0,0.8590205]
[1743224785595,0.05152001,84045.0,84044.0,0.8590205]
[1743224785796,0.13784901,84045.0,84044.0,0.8590205]
[1743224785996,0.13049503,84045.0,84044.0,0.8590205]
[1743224786411,0.01146603,84045.0,84044.0,0.8590205]
[1743224786908,0.13049503,84045.0,84044.0,0.8590205]
[1743224788702,0.13025542,84045.0,84044.0,0.8590205]
[1743224790013,0.13025542,84045.0,84044.0,0.4982205]
[1743224791111,0.12965541,84045.0,84044.0,0.4982205]
[1743224792406,0.120029,84045.0,84044.0,0.4982205]
[1743224792611,0.12971093,84045.0,84044.0,0.4982205]
[1743224793601,0.01068193,84045.0,84044.0,0.4982205]
[1743224798120,0.1427506,84052.0,84051.0,0.1190205]
[1743224798409,0.14399061,84052.0,84051.0,0.3702605]
[1743224799004,0.14399061,84052.0,84051.0,0.4344605]
[1743224799402,0.14499061,84052.0,84051.0,0.4344605]
[1743224799607,0.00241839,84052.0,84051.0,0.4344605]
[1743224801320,0.00241839,84052.0,84051.0,0.4820505]
[1743224801914,0.00241839,84052.0,84051.0,0.24404855]
[1743224802115,0.12143749,84052.0,84051.0,0.2320505]
[1743224802517,0.18373749,84052.0,84051.0,0.2320505]
[1743224806425,0.18373749,84052.0,84051.0,0.1678505]
[1743224807209,0.1997174,84052.0,84051.0,0.1678505]
[1743224807715,0.18373749,84052.0,84051.0,0.1678505]
[1743224808019,0.19973252,84052.0,84051.0,0.1678505]
[1743224808419,0.21163673,84052.0,84051.0,0.1678505]
[1743224809833,0.2116306,84052.0,84051.0,0.1678505]
[1743224810013,0.22162366,84052.0,84051.0,0.1678505]
[1743224811618,0.22135391,84052.0,84051.0,0.1678505]
[1743224812814,0.20553101,84052.0,84051.0,0.1678505]
[1743224813617,0.21289685,84052.0,84051.0,0.1678505]
[1743224814021,0.20553101,84052.0,84051.0,0.1678505]
[1743224821229,0.21284977,84052.0,84051.0,0.1678505]
[1743224822422,0.21284977,84052.0,84051.0,0.04883]
[1743224824323,0.21284977,84052.0,84051.0,0.1678505]
[1743224824527,0.21267417,84052.0,84051.0,0.1678505]
[1743224824729,0.21267417,84052.0,84051.0,0.04883]
[1743224825325,0.21267417,84052.0,84051.0,0.1678505]
[1743224829036,0.20076996,84052.0,84051.0,0.1678505]
[1743224829740,0.20076996,84052.0,84051.0,0.2011505]
[1743224831722,0.34348141,84052.0,84051.0,0.2011505]
[1743224833536,0.22446231,84052.0,84051.0,0.2011505]
[1743224833726,0.16216231,84052.0,84051.0,0.3111505]
[1743224833934,0.14512984,84052.0,84051.0,0.3421505]
[1743224834242,0.21338319,84062.0,84056.0,0.1190135]
[1743224834443,0.21338319,84062.0,84061.0,0.1190064]
[1743224834641,0.33238819,84062.0,84061.0,0.2605664]
[1743224834941,0.119005,84062.0,84061.0,0.2605664]
[1743224835143,0.27598319,84063.0,84062.0,0.119005]
[1743224835340,0.21338319,84063.0,84062.0,0.153805]
[1743224835640,0.21338319,84063.0,84062.0,0.184205]
[1743224836940,0.21338319,84063.0,84062.0,0.24075529]
[1743224837141,0.21338319,84063.0,84062.0,0.25260385]
[1743224840043,0.00017849,84070.0,84066.0,0.1189993]
[1743224840347,0.00017849,84070.0,84069.0,0.1189951]
[1743224840541,0.00017849,84070.0,84069.0,0.1205551]
[1743224841653,0.11917209,84070.0,84069.0,0.1205551]
[1743224841841,0.14967209,84070.0,84069.0,0.1205551]
[1743224843543,0.03067849,84070.0,84069.0,0.1205551]
[1743224844048,0.03067849,84070.0,84069.0,0.2705551]
[1743224844348,0.00017849,84070.0,84069.0,0.2705551]
[1743224845042,0.03267849,84070.0,84069.0,0.2705551]
[1743224846950,0.06437849,84070.0,84069.0,0.2705551]
[1743224847449,0.06437849,84070.0,84069.0,0.3316551]
[1743224848344,0.18337209,84070.0,84069.0,0.3316551]
[1743224848656,0.18337209,84070.0,84069.0,0.1816551]
[1743224853058,0.0317,84077.0,84076.0,0.1189852]
[1743224853256,0.0317,84077.0,84076.0,0.1206252]
[1743224854162,0.0317,84077.0,84076.0,0.13260822]
[1743224854462,0.0634,84077.0,84076.0,0.16370822]
[1743224855163,0.0634,84077.0,84076.0,0.1517252]
[1743224857853,0.0634,84077.0,84076.0,0.16389232]
[1743224858257,0.0317,84077.0,84076.0,0.16389232]
[1743224858557,0.1506837,84077.0,84076.0,0.16389232]
[1743224860470,0.0317,84077.0,84076.0,0.16389232]
[1743224860770,0.1506837,84077.0,84076.0,0.1517252]
[1743224860962,0.1814837,84077.0,84076.0,0.1517252]
[1743224861364,0.1814837,84077.0,84076.0,0.1206252]
[1743224864454,0.1814837,84077.0,84076.0,0.1681952]
[1743224876574,0.1814837,84077.0,84076.0,0.2007952]
[1743224878075,0.0625,84077.0,84076.0,0.2007952]
[1743224878476,0.1814837,84077.0,84076.0,0.2007952]
[1743224880374,0.1814837,84077.0,84076.0,0.2316952]
[1743224884577,0.1814837,84077.0,84076.0,0.04921]
[1743224885078,0.2966037,84077.0,84076.0,0.04921]
[1743224886079,0.2966037,84077.0,84076.0,0.1681952]
[1743224888882,0.6574037,84077.0,84076.0,0.1681952]
[1743224889778,0.2966037,84077.0,84076.0,0.1681952]
[1743224889978,0.6574037,84077.0,84076.0,0.1681952]
[1743224891780,0.6574037,84077.0,84076.0,0.04921]
[1743224892181,0.6574037,84077.0,84076.0,0.1681952]
[1743224893186,0.6574037,84077.0,84076.0,0.04921]
[1743224897889,0.6574037,84077.0,84076.0,0.04757]
[1743224899494,0.2966037,84077.0,84076.0,0.04757]
[1743224899787,0.6574037,84077.0,84076.0,0.04917]
[1743224899986,0.6574037,84077.0,84076.0,0.04757]
[1743224901783,0.2966037,84077.0,84076.0,0.04757]
[1743224901986,1.0182037,84077.0,84076.0,0.04757]
[1743224903587,1.0182037,84077.0,84068.0,0.213836]
[1743224903588,0.1189951,84069.0,84068.0,0.213836]
[1743224903794,0.1189951,84069.0,84068.0,0.215436]
[1743224903795,0.4797951,84069.0,84068.0,0.215436]
[1743224905998,0.4797951,84069.0,84068.0,0.0016]
[1743224906192,0.119005,84062.0,84061.0,0.00017849]
[1743224906497,0.594925,84062.0,84061.0,0.00177849]
[1743224907098,0.656325,84062.0,84061.0,0.00177849]
[1743224907982,0.295525,84062.0,84061.0,0.00177849]
[1743224908183,0.656325,84062.0,84061.0,0.00177849]
[1743224908993,0.656325,84062.0,84061.0,0.00017849]
[1743224910502,0.66817207,84062.0,84061.0,0.00017849]
[1743224911701,0.77581814,84062.0,84061.0,0.00017849]
[1743224911904,0.77581814,84062.0,84061.0,0.03347849]
[1743224912290,0.77581814,84062.0,84061.0,0.03187849]
[1743224913702,0.77581814,84062.0,84061.0,0.00017849]
[1743224914597,0.77581814,84062.0,84061.0,0.03197849]
[1743224914795,0.66901207,84062.0,84061.0,0.03197849]
[1743224916098,0.66901207,84062.0,84061.0,0.00017849]
[1743224917111,0.1190163,84054.0,84053.0,0.0638]
[1743224917299,0.4798163,84054.0,84053.0,0.0638]
[1743224917904,0.4798163,84054.0,84053.0,0.06536]
[1743224921494,0.4798163,84054.0,84053.0,0.0638]
[1743224921894,0.4798163,84054.0,84053.0,0.0654]
[1743224922301,0.4798163,84054.0,84053.0,0.0638]
[1743224922499,0.4798163,84054.0,84053.0,0.06536]
[1743224922703,0.4798163,84054.0,84053.0,0.0638]
[1743224929916,0.0595088,84053.0,84045.0,0.00017849]
[1743224930212,0.4798276,84046.0,84045.0,0.00017849]
[1743224930413,0.4798276,84046.0,84045.0,0.00181849]
[1743224930920,0.4798276,84046.0,84045.0,0.00017849]
[1743224931119,0.5445276,84046.0,84045.0,0.00017849]
[1743224931309,0.55563848,84046.0,84045.0,0.00017849]
[1743224932910,0.55563848,84046.0,84045.0,0.00177849]
[1743224933711,0.55561757,84046.0,84045.0,0.00177849]
[1743224934107,0.19481757,84046.0,84045.0,0.00177849]
[1743224934312,0.55561757,84046.0,84045.0,0.00177849]
[1743224935624,0.55566843,84046.0,84045.0,0.00177849]
[1743224936118,0.70566843,84046.0,84045.0,0.00177849]
[1743224936933,0.1190503,84030.0,84029.0,0.213836]
[1743224937115,0.5957703,84030.0,84029.0,0.214916]
[1743224937322,0.59685031,84030.0,84029.0,0.214916]
[1743224937719,0.66075031,84030.0,84029.0,0.214916]
[1743224938115,0.66075031,84030.0,84029.0,0.215916]
[1743224938627,0.66075031,84030.0,84029.0,0.216916]
[1743224940924,0.67262073,84030.0,84029.0,0.216916]
[1743224941519,0.67262073,84030.0,84029.0,0.00308]
[1743224941721,0.67262073,84030.0,84029.0,0.002]
[1743224944516,0.67262073,84030.0,84029.0,0.001]
[1743224944720,0.67262073,84030.0,84029.0,0.002]
[1743224950227,0.67262073,84030.0,84022.0,0.0631]
[1743224950228,0.1190602,84023.0,84022.0,0.0631]
[1743224950427,0.4805002,84023.0,84022.0,0.0631]
[1743224951123,0.5454002,84023.0,84022.0,0.0631]
[1743224951631,0.5454002,84023.0,84022.0,0.0661]
[1743224951944,0.5454002,84023.0,84022.0,0.0691]
[1743224953930,0.5134002,84023.0,84022.0,0.0691]
[1743224954237,0.36144,84023.0,84022.0,0.07026]
[1743224954425,0.47716,84023.0,84022.0,0.0691]
[1743224954625,0.5962202,84023.0,84022.0,0.0691]
[1743224961433,0.5962202,84023.0,84022.0,0.07018]
[1743224965540,0.6286202,84023.0,84022.0,0.07018]
[1743224967247,0.73545671,84023.0,84022.0,0.07018]
[1743224968037,0.10747651,84023.0,84022.0,0.1892416]
[1743224968345,0.10747651,84023.0,84022.0,0.4492416]
[1743224968546,0.10683651,84023.0,84022.0,0.4492416]
[1743224968733,0.22701672,84023.0,84022.0,0.4492416]
[1743224969542,0.10795652,84023.0,84022.0,0.4492416]
[1743224971852,0.00112001,84023.0,84022.0,0.4492416]
[1743224972052,0.12018021,84023.0,84022.0,0.4492416]
[1743224972447,0.12018021,84023.0,84022.0,0.46107396]
[1743224972646,0.12018021,84023.0,84022.0,0.82187396]
[1743224972947,0.1190602,84023.0,84022.0,0.82187396]
[1743224974450,0.1202202,84023.0,84022.0,0.82187396]
[1743224974641,0.1202202,84023.0,84022.0,0.8100416]
[1743224974845,0.1202202,84023.0,84022.0,0.5500416]
[1743224975548,0.1533202,84023.0,84022.0,0.5500416]
[1743224976344,0.1533202,84023.0,84022.0,0.1892416]
[1743224990959,0.1533202,84023.0,84022.0,0.47456584]
[1743224991363,0.1521602,84023.0,84022.0,0.47456584]
[1743224992061,0.15324021,84023.0,84022.0,0.47456584]
[1743224992463,0.1521602,84023.0,84022.0,0.47456584]
[1743224999361,0.1533202,84023.0,84022.0,0.47456584]
[1743225000170,0.1533202,84023.0,84022.0,0.1892416]
[1743225002364,0.1533202,84023.0,84022.0,0.1576416]
[1743225003672,0.1533202,84023.0,84022.0,0.1893416]
[1743225005369,0.03426,84023.0,84022.0,0.1893416]
[1743225006163,0.21338319,84040.0,84030.0,0.1190503]
[1743225006472,0.14392868,84031.0,84030.0,0.7313303]
[1743225006859,0.14392868,84031.0,84030.0,0.77933796]
[1743225007157,0.14392868,84031.0,84030.0,0.84113796]
[1743225007357,0.14392868,84031.0,84030.0,0.84313796]
[1743225007975,0.04196567,84031.0,84030.0,0.84313796]
[1743225008172,0.04048567,84031.0,84030.0,0.84313796]
[1743225008866,0.04112567,84031.0,84030.0,0.84313796]
[1743225010665,0.00064,84031.0,84030.0,1.16547409]
[1743225010966,0.0316,84031.0,84030.0,1.16547409]
[1743225011861,0.0316,84031.0,84030.0,0.80467409]
[1743225012074,0.0316,84031.0,84030.0,1.16547409]
[1743225012876,0.0316,84031.0,84030.0,0.80467409]
[1743225013278,0.0316,84031.0,84030.0,1.16547409]
[1743225017974,0.00017849,84038.0,84037.0,0.1190404]
[1743225018174,0.00017849,84038.0,84037.0,0.8464404]
[1743225018571,0.00017849,84038.0,84037.0,0.9395404]
[1743225020274,0.00117849,84038.0,84037.0,0.9395404]
[1743225021167,0.00217849,84038.0,84037.0,0.9395404]
[1743225026881,0.00217849,84038.0,84037.0,0.9083404]
[1743225032580,0.00217849,84038.0,84037.0,0.5475404]
[1743225032781,0.00217849,84038.0,84037.0,0.9083404]
[1743225035178,0.00217849,84038.0,84037.0,0.5475404]
[1743225035489,0.00217849,84038.0,84037.0,0.9083404]
[1743225035787,0.00217849,84038.0,84037.0,0.9559304]
[1743225036782,0.00217849,84038.0,84037.0,0.5951304]
[1743225036984,0.00217849,84038.0,84037.0,0.9559304]
[1743225037491,0.00217849,84038.0,84037.0,1.31218341]
[1743225040389,0.00217849,84038.0,84037.0,1.32738217]
[1743225040584,0.00217849,84038.0,84037.0,1.37535401]
[1743225046996,0.00217849,84038.0,84037.0,1.40509401]
[1743225047190,0.00217849,84038.0,84037.0,1.41698401]
[1743225048687,0.00217849,84038.0,84037.0,1.05618401]
[1743225048888,0.00217849,84038.0,84037.0,2.22579026]
[1743225049397,9e-08,84038.0,84037.0,2.22579026]
[1743225049605,9e-08,84038.0,84037.0,2.26617278]
[1743225050303,9e-08,84038.0,84037.0,2.22579026]
[1743225053009,9e-08,84038.0,84037.0,1.50419026]
[1743225053197,9e-08,84038.0,84037.0,1.66262401]
[1743225053401,9e-08,84038.0,84037.0,1.77778401]
[1743225053998,9e-08,84038.0,84037.0,1.05618401]
[1743225054198,9e-08,84038.0,84037.0,1.77778401]
[1743225055005,9e-08,84038.0,84037.0,1.05618401]
[1743225055202,9e-08,84038.0,84037.0,1.77778401]
[1743225056299,9e-08,84038.0,84037.0,1.05618401]
[1743225056504,9e-08,84038.0,84037.0,1.77778401]
[1743225057415,9e-08,84038.0,84037.0,2.2059556]
[1743225059911,0.00017849,84046.0,84045.0,0.119029]
[1743225060114,0.00017849,84046.0,84045.0,0.731269]
[1743225060320,0.00017849,84046.0,84045.0,0.77924084]
[1743225060807,0.00017849,84046.0,84045.0,0.84264084]
[1743225062216,0.00017849,84046.0,84045.0,0.85441208]
[1743225063014,0.00017849,84046.0,84045.0,0.88415208]
[1743225065032,0.00017849,84046.0,84045.0,0.93174208]
[1743225065525,0.00017849,84046.0,84045.0,1.30319385]
[1743225065929,0.00017849,84046.0,84045.0,1.33293385]
[1743225066821,0.00017849,84046.0,84045.0,0.97213385]
[1743225067022,0.00017849,84046.0,84045.0,1.69373385]
[1743225068828,0.00017849,84046.0,84045.0,0.97213385]
[1743225069527,0.00017849,84046.0,84045.0,1.69373385]
[1743225069931,0.00017849,84046.0,84045.0,0.97213385]
[1743225070131,0.00017849,84046.0,84045.0,1.69373385]
[1743225070332,0.00017849,84046.0,84045.0,0.97213385]
[1743225070631,0.00017849,84046.0,84045.0,1.69373385]
[1743225071933,0.00017849,84046.0,84045.0,0.97213385]
[1743225072143,0.00017849,84046.0,84045.0,1.69373385]
[1743225072742,0.00017849,84046.0,84045.0,1.82074385]
[1743225073744,0.00017849,84046.0,84045.0,2.24852448]
[1743225074139,0.00017849,84046.0,84045.0,1.52692448]
[1743225074535,0.00017849,84046.0,84045.0,2.24852448]
[1743225077044,0.00017849,84046.0,84045.0,1.82074385]
[1743225078746,0.00017849,84046.0,84045.0,1.70562385]
[1743225078946,0.00017849,84046.0,84045.0,1.82074385]
[1743225079246,0.00017849,84046.0,84045.0,1.09914385]
[1743225079447,0.00017849,84046.0,84045.0,1.82074385]
[1743225079939,0.00017849,84046.0,84045.0,1.70562385]
[1743225080138,0.00017849,84046.0,84045.0,1.82074385]
[1743225080943,0.00017849,84046.0,84045.0,2.24852448]
[1743225083942,0.00017849,84046.0,84045.0,1.52692448]
[1743225084241,0.00017849,84046.0,84045.0,1.88772448]
[1743225084443,0.00017849,84046.0,84045.0,1.90648659]
[1743225089244,0.00017849,84046.0,84045.0,2.26728659]
[1743225096165,0.00017849,84046.0,84045.0,1.54568659]
[1743225096466,0.00017849,84046.0,84045.0,2.26728659]
[1743225102159,0.00017849,84046.0,84045.0,1.90648659]
[1743225106355,0.00017849,84046.0,84045.0,1.85851475]
[1743225106755,0.00017849,84046.0,84045.0,1.90655454]
[1743225107155,0.00017849,84046.0,84045.0,1.4600118]
[1743225108957,0.00017849,84046.0,84045.0,1.0992118]
[1743225109156,0.00017849,84046.0,84045.0,1.4600118]
[1743225113460,9e-08,84046.0,84045.0,1.4600118]
[1743225113959,9e-08,84046.0,84045.0,1.90655454]
[1743225118470,9e-08,84046.0,84045.0,2.26735454]
[1743225120372,9e-08,84046.0,84045.0,2.30808746]
[1743225122075,9e-08,84046.0,84045.0,2.26735454]
[1743225126565,9e-08,84046.0,84045.0,2.30808746]
[1743225127172,9e-08,84046.0,84045.0,2.26735454]
[1743225127562,9e-08,84046.0,84045.0,2.30808746]
[1743225128380,9e-08,84046.0,84045.0,2.26735454]
[1743225131183,9e-08,84046.0,84045.0,1.54575454]
[1743225131382,9e-08,84046.0,84045.0,2.26735454]
[1743225135976,9e-08,84046.0,84045.0,2.08883454]
[1743225136179,9e-08,84046.0,84045.0,2.20391454]
[1743225138484,9e-08,84046.0,84045.0,1.48231454]
[1743225138686,9e-08,84046.0,84045.0,1.84311454]
[1743225138882,9e-08,84046.0,84045.0,1.72803454]
[1743225139071,0.11902769,84046.0,84045.0,0.9864343]
[1743225139277,0.00144009,84046.0,84045.0,1.05742351]
[1743225139782,9e-08,84046.0,84045.0,1.05742351]
[1743225140875,0.00068009,84046.0,84045.0,1.05742351]
[1743225141082,0.06608009,84046.0,84045.0,1.05742351]
[1743225141275,0.09798009,84046.0,84045.0,1.05742351]
[1743225141482,0.09730009,84046.0,84045.0,1.05742351]
[1743225144592,0.09730009,84046.0,84045.0,0.239429]
[1743225144794,0.09878009,84046.0,84045.0,0.239429]
[1743225144989,0.09730009,84046.0,84045.0,0.239429]
[1743225145187,0.09730009,84046.0,84045.0,0.339429]
[1743225145386,0.09730009,84046.0,84045.0,0.372529]
[1743225145693,0.09730009,84046.0,84045.0,0.404329]
[1743225145883,9e-08,84046.0,84045.0,0.437429]
[1743225146191,9e-08,84046.0,84045.0,0.404329]
[1743225146492,9e-08,84046.0,84045.0,0.45226266]
[1743225150093,9e-08,84046.0,84045.0,1.17386266]
[1743225153490,0.0924,84054.0,84053.0,0.1190177]